fUSD/lending_fUSD_20260505
["ID","MTS","AMOUNT","RATE_DAILY","PERIOD"]
[421627412,1777995040000,-1351.0,0.00037491,2]
[421627420,1777995040000,-46069.3813643,0.00037517,2]
[421627419,1777995040000,-7419.5597801,0.00037517,2]
[421627417,1777995040000,-593.936411,0.00037517,2]
[421627415,1777995040000,-57443.2171065,0.00037517,2]
[421627414,1777995040000,-118403.43203772,0.0003751,2]
[421627409,1777995040000,-17752.87949615,0.00037396,2]
[421627413,1777995040000,-502.31565954,0.00037509,15]
[421627410,1777995040000,-153.58,0.00037472,2]
[421627406,1777995040000,-200.0,0.0003689,2]
[421627402,1777995040000,-500.0,0.00036805,2]
[421627411,1777995040000,-1049.0,0.00037491,2]
[421627403,1777995040000,-500.0,0.00036805,2]
[421627459,1777995041000,-151.0,0.0003788,7]
[421627457,1777995041000,-151.0,0.0003788,7]
[421627458,1777995041000,-151.0,0.0003788,7]
[421627452,1777995041000,-200.0,0.0003788,30]
[421627461,1777995041000,-166.32,0.00037923,2]
[421627450,1777995041000,-1051.01233208,0.00037879,5]
[421627451,1777995041000,-26647.75548509,0.0003788,4]
[421627454,1777995041000,-151.0,0.0003788,7]
[421627460,1777995041000,-203.74799717,0.000379,2]
[421627456,1777995041000,-251.325893,0.0003788,7]
[421627453,1777995041000,-927960.38691482,0.0003788,2]
[421627455,1777995041000,-151.0,0.0003788,7]
[421627469,1777995041000,-580.95916998,0.00038121,5]
[421627465,1777995041000,-534.34,0.00038,2]
[421627466,1777995041000,-339.5250961,0.00038,2]
[421627464,1777995041000,-160.0,0.00038,90]
[421627463,1777995041000,-160.0,0.00038,120]
[421627470,1777995041000,-500.0,0.00038121,5]
[421627468,1777995041000,-165.64657294,0.0003808,2]
[421627449,1777995041000,-1663.03959526,0.00037879,5]
[421627471,1777995041000,-2754.08703901,0.00038163,2]
[421627473,1777995041000,-481.06571266,0.00038279,2]
[421627472,1777995041000,-17752.87949615,0.00038272,2]
[421627475,1777995041000,-300.0,0.00038279,2]
[421627474,1777995041000,-618.18148729,0.00038279,2]
[421627467,1777995041000,-2200.0,0.00038035,3]
[421627462,1777995041000,-172.0,0.00038,120]
[421627436,1777995041000,-353.0,0.00037879,15]
[421627445,1777995041000,-1438.09495884,0.00037879,5]
[421627476,1777995041000,-743.248,0.00038346,120]
[421627422,1777995041000,-500.0,0.00037573,5]
[421627421,1777995041000,-278.767725,0.00037517,7]
[421627434,1777995041000,-500.0,0.00037873,5]
[421627426,1777995041000,-200.0,0.00037741,2]
[421627435,1777995041000,-500.0,0.00037873,5]
[421627425,1777995041000,-1511.87,0.00037604,2]
[421627427,1777995041000,-1077.6977555,0.00037772,2]
[421627423,1777995041000,-500.0,0.00037573,5]
[421627428,1777995041000,-166.22915442,0.0003778,2]
[421627424,1777995041000,-502.93754583,0.00037573,5]
[421627429,1777995041000,-151.0,0.00037815,7]
[421627446,1777995041000,-1491.30447232,0.00037879,5]
[421627432,1777995041000,-500.0,0.00037873,5]
[421627431,1777995041000,-416.67733328,0.0003787,2]
[421627430,1777995041000,-151.0,0.00037815,7]
[421627437,1777995041000,-500.0,0.00037879,2]
[421627447,1777995041000,-1546.48273779,0.00037879,5]
[421627441,1777995041000,-151.0,0.00037879,7]
[421627439,1777995041000,-151.0,0.00037879,7]
[421627438,1777995041000,-300.0,0.00037879,10]
[421627448,1777995041000,-1603.70259909,0.00037879,5]
[421627443,1777995041000,-234.071689,0.00037879,7]
[421627442,1777995041000,-151.0,0.00037879,7]
[421627440,1777995041000,-151.0,0.00037879,7]
[421627444,1777995041000,-1386.78395259,0.00037879,5]
[421627433,1777995041000,-500.0,0.00037873,5]
[421627479,1777995041000,-155.669,0.00038355,2]
[421627492,1777995041000,-500.0,0.00038356,2]
[421627477,1777995041000,-300.0,0.00038355,10]
[421627511,1777995041000,-500.0,0.00038356,2]
[421627508,1777995041000,-500.0,0.00038356,2]
[421627513,1777995041000,-485.79756341,0.00038356,2]
[421627509,1777995041000,-500.0,0.00038356,2]
[421627526,1777995041000,-151.0,0.00038356,7]
[421627516,1777995041000,-2773.2,0.00038356,2]
[421627515,1777995041000,-2773.2,0.00038356,2]
[421627517,1777995041000,-2773.2,0.00038356,2]
[421627523,1777995041000,-151.0,0.00038356,7]
[421627522,1777995041000,-581.38040859,0.00038356,2]
[421627518,1777995041000,-2773.2,0.00038356,2]
[421627520,1777995041000,-500.0,0.00038356,2]
[421627512,1777995041000,-500.0,0.00038356,2]
[421627521,1777995041000,-500.0,0.00038356,2]
[421627525,1777995041000,-634.00654051,0.00038356,2]
[421627524,1777995041000,-151.0,0.00038356,7]
[421627527,1777995041000,-152.41441699,0.00038356,2]
[421627530,1777995041000,-563.93,0.00038356,2]
[421627528,1777995041000,-563.93,0.00038356,2]
[421627529,1777995041000,-563.93,0.00038356,2]
[421627532,1777995041000,-563.93,0.00038356,2]
[421627533,1777995041000,-563.93,0.00038356,2]
[421627534,1777995041000,-500.0,0.00038356,2]
[421627531,1777995041000,-563.93,0.00038356,2]
[421627535,1777995041000,-500.0,0.00038356,2]
[421627478,1777995041000,-300.583,0.00038355,2]
[421627519,1777995041000,-2773.2,0.00038356,2]
[421627510,1777995041000,-500.0,0.00038356,2]
[421627536,1777995041000,-500.0,0.00038356,2]
[421627514,1777995041000,-2773.2,0.00038356,2]
[421627507,1777995041000,-500.0,0.00038356,2]
[421627482,1777995041000,-857.48,0.00038356,2]
[421627481,1777995041000,-857.48,0.00038356,2]
[421627483,1777995041000,-857.48,0.00038356,2]
[421627485,1777995041000,-500.0,0.00038356,2]
[421627484,1777995041000,-857.48,0.00038356,2]
[421627490,1777995041000,-151.0,0.00038356,7]
[421627487,1777995041000,-500.0,0.00038356,2]
[421627486,1777995041000,-500.0,0.00038356,2]
[421627489,1777995041000,-500.0,0.00038356,2]
[421627488,1777995041000,-500.0,0.00038356,2]
[421627499,1777995041000,-500.0,0.00038356,2]
[421627502,1777995041000,-500.0,0.00038356,2]
[421627480,1777995041000,-857.48,0.00038356,2]
[421627495,1777995041000,-500.0,0.00038356,2]
[421627497,1777995041000,-500.0,0.00038356,2]
[421627504,1777995041000,-500.0,0.00038356,2]
[421627505,1777995041000,-500.0,0.00038356,2]
[421627503,1777995041000,-151.20747261,0.00038356,2]
[421627500,1777995041000,-500.0,0.00038356,2]
[421627491,1777995041000,-500.0,0.00038356,2]
[421627506,1777995041000,-500.0,0.00038356,2]
[421627494,1777995041000,-500.0,0.00038356,2]
[421627498,1777995041000,-500.0,0.00038356,2]
[421627501,1777995041000,-500.0,0.00038356,2]
[421627496,1777995041000,-500.0,0.00038356,2]
[421627493,1777995041000,-500.0,0.00038356,2]
[421627574,1777995042000,-500.0,0.00038356,2]
[421627578,1777995042000,-500.0,0.00038356,2]
[421627575,1777995042000,-325.91167521,0.00038356,2]
[421627572,1777995042000,-500.0,0.00038356,2]
[421627571,1777995042000,-500.0,0.00038356,2]
[421627570,1777995042000,-500.0,0.00038356,2]
[421627567,1777995042000,-500.0,0.00038356,2]
[421627562,1777995042000,-582.1437793,0.00038356,2]
[421627580,1777995042000,-500.0,0.00038356,2]
[421627565,1777995042000,-500.0,0.00038356,2]
[421627568,1777995042000,-500.0,0.00038356,2]
[421627577,1777995042000,-500.0,0.00038356,2]
[421627582,1777995042000,-500.0,0.00038356,2]
[421627579,1777995042000,-500.0,0.00038356,2]
[421627581,1777995042000,-500.0,0.00038356,2]
[421627584,1777995042000,-500.0,0.00038356,2]
[421627583,1777995042000,-500.0,0.00038356,2]
[421627586,1777995042000,-500.0,0.00038356,2]
[421627596,1777995042000,-500.0,0.00038356,2]
[421627585,1777995042000,-500.0,0.00038356,2]
[421627591,1777995042000,-500.0,0.00038356,2]
[421627594,1777995042000,-500.0,0.00038356,2]
[421627590,1777995042000,-500.0,0.00038356,2]
[421627569,1777995042000,-500.0,0.00038356,2]
[421627587,1777995042000,-500.0,0.00038356,2]
[421627576,1777995042000,-500.0,0.00038356,2]
[421627564,1777995042000,-500.0,0.00038356,2]
[421627551,1777995042000,-500.0,0.00038356,2]
[421627573,1777995042000,-500.0,0.00038356,2]
[421627589,1777995042000,-500.0,0.00038356,2]
[421627538,1777995042000,-500.0,0.00038356,2]
[421627537,1777995042000,-500.0,0.00038356,2]
[421627550,1777995042000,-345.79645664,0.00038356,2]
[421627540,1777995042000,-500.0,0.00038356,2]
[421627539,1777995042000,-500.0,0.00038356,2]
[421627541,1777995042000,-299.67602487,0.00038356,2]
[421627544,1777995042000,-500.0,0.00038356,2]
[421627542,1777995042000,-325.61127052,0.00038356,2]
[421627546,1777995042000,-500.0,0.00038356,2]
[421627543,1777995042000,-500.0,0.00038356,2]
[421627548,1777995042000,-500.0,0.00038356,2]
[421627566,1777995042000,-500.0,0.00038356,2]
[421627549,1777995042000,-500.0,0.00038356,2]
[421627547,1777995042000,-500.0,0.00038356,2]
[421627556,1777995042000,-500.0,0.00038356,2]
[421627557,1777995042000,-500.0,0.00038356,2]
[421627554,1777995042000,-500.0,0.00038356,2]
[421627553,1777995042000,-500.0,0.00038356,2]
[421627555,1777995042000,-500.0,0.00038356,2]
[421627552,1777995042000,-500.0,0.00038356,2]
[421627558,1777995042000,-500.0,0.00038356,2]
[421627561,1777995042000,-500.0,0.00038356,2]
[421627560,1777995042000,-500.0,0.00038356,2]
[421627559,1777995042000,-500.0,0.00038356,2]
[421627563,1777995042000,-500.0,0.00038356,2]
[421627545,1777995042000,-500.0,0.00038356,2]
[421627592,1777995042000,-500.0,0.00038356,2]
[421627616,1777995042000,-500.0,0.00038356,2]
[421627588,1777995042000,-500.0,0.00038356,2]
[421627634,1777995042000,-789.51,0.00038356,2]
[421627637,1777995042000,-789.51,0.00038356,2]
[421627636,1777995042000,-789.51,0.00038356,2]
[421627630,1777995042000,-500.0,0.00038356,2]
[421627633,1777995042000,-789.51,0.00038356,2]
[421627631,1777995042000,-500.0,0.00038356,2]
[421627638,1777995042000,-789.51,0.00038356,2]
[421627635,1777995042000,-789.51,0.00038356,2]
[421627640,1777995042000,-500.0,0.00038356,2]
[421627639,1777995042000,-433.72142261,0.00038356,2]
[421627641,1777995042000,-500.0,0.00038356,2]
[421627646,1777995042000,-500.0,0.00038356,2]
[421627632,1777995042000,-575.92336569,0.00038356,2]
[421627642,1777995042000,-247.20557105,0.00038356,2]
[421627650,1777995042000,-500.0,0.00038356,2]
[421627643,1777995042000,-500.0,0.00038356,2]
[421627645,1777995042000,-500.0,0.00038356,2]
[421627648,1777995042000,-500.0,0.00038356,2]
[421627647,1777995042000,-500.0,0.00038356,2]
[421627651,1777995042000,-897.01,0.00038356,2]
[421627653,1777995042000,-897.01,0.00038356,2]
[421627654,1777995042000,-897.01,0.00038356,2]
[421627652,1777995042000,-897.01,0.00038356,2]
[421627659,1777995042000,-500.0,0.00038356,2]
[421627656,1777995042000,-897.01,0.00038356,2]
[421627655,1777995042000,-897.01,0.00038356,2]
[421627644,1777995042000,-563.28894036,0.00038356,2]
[421627629,1777995042000,-500.0,0.00038356,2]
[421627595,1777995042000,-500.0,0.00038356,2]
[421627627,1777995042000,-500.0,0.00038356,2]
[421627628,1777995042000,-500.0,0.00038356,2]
[421627593,1777995042000,-500.0,0.00038356,2]
[421627598,1777995042000,-500.0,0.00038356,2]
[421627599,1777995042000,-500.0,0.00038356,2]
[421627604,1777995042000,-500.0,0.00038356,2]
[421627606,1777995042000,-500.0,0.00038356,2]
[421627602,1777995042000,-500.0,0.00038356,2]
[421627605,1777995042000,-500.0,0.00038356,2]
[421627603,1777995042000,-500.0,0.00038356,2]
[421627597,1777995042000,-500.0,0.00038356,2]
[421627600,1777995042000,-500.0,0.00038356,2]
[421627601,1777995042000,-345.90030198,0.00038356,2]
[421627607,1777995042000,-500.0,0.00038356,2]
[421627609,1777995042000,-500.0,0.00038356,2]
[421627622,1777995042000,-500.0,0.00038356,2]
[421627611,1777995042000,-500.0,0.00038356,2]
[421627621,1777995042000,-500.0,0.00038356,2]
[421627619,1777995042000,-500.0,0.00038356,2]
[421627618,1777995042000,-500.0,0.00038356,2]
[421627613,1777995042000,-500.0,0.00038356,2]
[421627625,1777995042000,-500.0,0.00038356,2]
[421627626,1777995042000,-500.0,0.00038356,2]
[421627620,1777995042000,-500.0,0.00038356,2]
[421627660,1777995042000,-500.0,0.00038356,2]
[421627624,1777995042000,-500.0,0.00038356,2]
[421627614,1777995042000,-500.0,0.00038356,2]
[421627623,1777995042000,-500.0,0.00038356,2]
[421627701,1777995043000,-500.0,0.00038356,2]
[421627703,1777995043000,-500.0,0.00038356,2]
[421627702,1777995043000,-500.0,0.00038356,2]
[421627698,1777995043000,-500.0,0.00038356,2]
[421627705,1777995043000,-500.0,0.00038356,2]
[421627697,1777995043000,-500.0,0.00038356,2]
[421627699,1777995043000,-500.0,0.00038356,2]
[421627695,1777995043000,-554.71715675,0.00038356,2]
[421627704,1777995043000,-482.56987887,0.00038356,2]
[421627700,1777995043000,-500.0,0.00038356,2]
[421627696,1777995043000,-500.0,0.00038356,2]
[421627707,1777995043000,-500.0,0.00038356,2]
[421627729,1777995043000,-3317.68,0.00038356,2]
[421627708,1777995043000,-500.0,0.00038356,2]
[421627717,1777995043000,-510.6,0.00038356,2]
[421627709,1777995043000,-500.0,0.00038356,2]
[421627712,1777995043000,-510.6,0.00038356,2]
[421627710,1777995043000,-500.0,0.00038356,2]
[421627715,1777995043000,-510.6,0.00038356,2]
[421627711,1777995043000,-510.6,0.00038356,2]
[421627714,1777995043000,-510.6,0.00038356,2]
[421627713,1777995043000,-510.6,0.00038356,2]
[421627716,1777995043000,-510.6,0.00038356,2]
[421627719,1777995043000,-500.0,0.00038356,2]
[421627718,1777995043000,-500.0,0.00038356,2]
[421627693,1777995043000,-500.0,0.00038356,2]
[421627706,1777995043000,-500.0,0.00038356,2]
[421627694,1777995043000,-500.0,0.00038356,2]
[421627679,1777995043000,-500.0,0.00038356,2]
[421627689,1777995043000,-500.0,0.00038356,2]
[421627662,1777995043000,-500.0,0.00038356,2]
[421627731,1777995043000,-3317.68,0.00038356,2]
[421627664,1777995043000,-500.0,0.00038356,2]
[421627663,1777995043000,-500.0,0.00038356,2]
[421627665,1777995043000,-500.0,0.00038356,2]
[421627676,1777995043000,-236.54501478,0.00038356,2]
[421627667,1777995043000,-500.0,0.00038356,2]
[421627671,1777995043000,-500.0,0.00038356,2]
[421627677,1777995043000,-500.0,0.00038356,2]
[421627678,1777995043000,-500.0,0.00038356,2]
[421627670,1777995043000,-564.44538157,0.00038356,2]
[421627669,1777995043000,-500.0,0.00038356,2]
[421627672,1777995043000,-500.0,0.00038356,2]
[421627673,1777995043000,-500.0,0.00038356,2]
[421627674,1777995043000,-500.0,0.00038356,2]
[421627675,1777995043000,-500.0,0.00038356,2]
[421627682,1777995043000,-500.0,0.00038356,2]
[421627681,1777995043000,-500.0,0.00038356,2]
[421627680,1777995043000,-500.0,0.00038356,2]
[421627683,1777995043000,-500.0,0.00038356,2]
[421627684,1777995043000,-492.52,0.00038356,2]
[421627691,1777995043000,-500.0,0.00038356,2]
[421627690,1777995043000,-500.0,0.00038356,2]
[421627687,1777995043000,-154.1078473,0.00038356,2]
[421627686,1777995043000,-500.0,0.00038356,2]
[421627692,1777995043000,-500.0,0.00038356,2]
[421627688,1777995043000,-500.0,0.00038356,2]
[421627685,1777995043000,-500.0,0.00038356,2]
[421627661,1777995043000,-500.0,0.00038356,2]
[421627722,1777995043000,-500.0,0.00038356,2]
[421627721,1777995043000,-500.0,0.00038356,2]
[421627758,1777995043000,-5482.0,0.00038542,2]
[421627756,1777995043000,-150.0,0.000385,120]
[421627760,1777995043000,-523.0,0.00038571,18]
[421627759,1777995043000,-195.58,0.00038557,120]
[421627757,1777995043000,-166.26,0.00038532,2]
[421627761,1777995043000,-200.0,0.00038592,2]
[421627764,1777995043000,-500.0,0.00038609,2]
[421627753,1777995043000,-1362.20141236,0.00038499,2]
[421627763,1777995043000,-563.93,0.00038609,2]
[421627766,1777995043000,-897.01,0.00038609,2]
[421627776,1777995043000,-1000.0,0.00038921,5]
[421627768,1777995043000,-150.0,0.0003875,120]
[421627771,1777995043000,-381.63,0.000389,120]
[421627770,1777995043000,-4153.0,0.00038791,2]
[421627765,1777995043000,-789.51,0.00038609,2]
[421627767,1777995043000,-159.0,0.0003875,120]
[421627769,1777995043000,-250.0,0.00038764,2]
[421627772,1777995043000,-244.28175363,0.000389,2]
[421627775,1777995043000,-1000.0,0.00038921,5]
[421627773,1777995043000,-298.73708973,0.000389,2]
[421627774,1777995043000,-500.0,0.00038904,5]
[421627779,1777995043000,-1500.0,0.00038968,5]
[421627777,1777995043000,-501.56787645,0.00038921,5]
[421627778,1777995043000,-1500.0,0.00038968,5]
[421627780,1777995043000,-155.0,0.00038987,5]
[421627781,1777995043000,-159.55,0.00039,90]
[421627730,1777995043000,-3317.68,0.00038356,2]
[421627762,1777995043000,-500.0,0.00038609,2]
[421627755,1777995043000,-159.0,0.000385,120]
[421627782,1777995043000,-150.0,0.00039,5]
[421627754,1777995043000,-2773.2,0.00038499,2]
[421627720,1777995043000,-500.0,0.00038356,2]
[421627723,1777995043000,-500.0,0.00038356,2]
[421627724,1777995043000,-500.0,0.00038356,2]
[421627728,1777995043000,-3317.68,0.00038356,2]
[421627727,1777995043000,-3317.68,0.00038356,2]
[421627726,1777995043000,-500.0,0.00038356,2]
[421627725,1777995043000,-500.0,0.00038356,2]
[421627752,1777995043000,-1000.0,0.00038421,5]
[421627734,1777995043000,-857.48,0.00038363,2]
[421627732,1777995043000,-3317.68,0.00038356,2]
[421627735,1777995043000,-500.0,0.00038363,2]
[421627736,1777995043000,-500.0,0.00038363,2]
[421627740,1777995043000,-534.99111469,0.00038363,2]
[421627733,1777995043000,-3317.68,0.00038356,2]
[421627738,1777995043000,-500.0,0.00038363,2]
[421627741,1777995043000,-500.0,0.00038363,2]
[421627751,1777995043000,-1002.87352275,0.00038421,5]
[421627744,1777995043000,-500.0,0.00038373,5]
[421627750,1777995043000,-1000.0,0.00038421,5]
[421627748,1777995043000,-500.0,0.00038373,5]
[421627742,1777995043000,-500.0,0.00038363,2]
[421627749,1777995043000,-502.90511659,0.00038421,5]
[421627747,1777995043000,-500.0,0.00038373,5]
[421627743,1777995043000,-4851.0,0.00038365,2]
[421627746,1777995043000,-501.82716153,0.00038373,5]
[421627739,1777995043000,-500.0,0.00038363,2]
[421627737,1777995043000,-332.94250398,0.00038363,2]
[421627745,1777995043000,-500.0,0.00038373,5]
[421627818,1777995044000,-126973.64486989,0.000395,2]
[421627821,1777995044000,-2000.0,0.00039516,5]
[421627819,1777995044000,-159.0,0.000395,120]
[421627824,1777995044000,-1000.0,0.0003957,2]
[421627822,1777995044000,-2010.58001212,0.00039516,5]
[421627817,1777995044000,-43084.88856321,0.000395,2]
[421627816,1777995044000,-605.2300491,0.000395,2]
[421627814,1777995044000,-1000.0,0.0003947,2]
[421627825,1777995044000,-500.0,0.00039599,2]
[421627815,1777995044000,-242.27,0.000395,2]
[421627820,1777995044000,-150.0,0.000395,120]
[421627823,1777995044000,-10254.0,0.00039542,2]
[421627836,1777995044000,-1000.0,0.0003967,2]
[421627839,1777995044000,-857.48,0.00039681,2]
[421627838,1777995044000,-1000.0,0.0003967,2]
[421627837,1777995044000,-1000.0,0.0003967,2]
[421627832,1777995044000,-1000.0,0.0003967,2]
[421627831,1777995044000,-1000.0,0.0003967,2]
[421627826,1777995044000,-453.16327439,0.000396,72]
[421627830,1777995044000,-212.0,0.00039649,2]
[421627828,1777995044000,-160.0,0.000396,72]
[421627833,1777995044000,-1000.0,0.0003967,2]
[421627835,1777995044000,-1000.0,0.0003967,2]
[421627834,1777995044000,-1000.0,0.0003967,2]
[421627829,1777995044000,-290.62434258,0.00039644,2]
[421627809,1777995044000,-200.0,0.00039443,2]
[421627827,1777995044000,-160.0,0.000396,72]
[421627808,1777995044000,-10279.4684417,0.00039425,2]
[421627794,1777995044000,-159.0,0.0003925,120]
[421627811,1777995044000,-1500.0,0.00039468,5]
[421627785,1777995044000,-2754.08703901,0.0003902,2]
[421627784,1777995044000,-150.0,0.00039,120]
[421627783,1777995044000,-159.0,0.00039,120]
[421627788,1777995044000,-183.76,0.00039074,14]
[421627786,1777995044000,-166.32,0.00039062,2]
[421627787,1777995044000,-183.76,0.00039074,14]
[421627841,1777995044000,-500.0,0.00039681,2]
[421627790,1777995044000,-159.93,0.00039136,2]
[421627792,1777995044000,-183.76,0.00039145,14]
[421627801,1777995044000,-2411.00658282,0.00039365,2]
[421627789,1777995044000,-152.0,0.00039078,4]
[421627791,1777995044000,-183.76,0.00039145,14]
[421627812,1777995044000,-1500.0,0.00039468,5]
[421627793,1777995044000,-17752.87949615,0.00039148,2]
[421627799,1777995044000,-444.44445,0.0003934,112]
[421627797,1777995044000,-1267.0,0.00039309,2]
[421627795,1777995044000,-150.0,0.0003925,120]
[421627796,1777995044000,-444.44444,0.0003929,112]
[421627802,1777995044000,-150.992,0.00039367,2]
[421627805,1777995044000,-761.4111035,0.00039401,2]
[421627807,1777995044000,-1655.5275619,0.00039425,2]
[421627803,1777995044000,-150.0,0.00039367,2]
[421627813,1777995044000,-1000.0,0.0003947,2]
[421627806,1777995044000,-151.0,0.00039405,30]
[421627804,1777995044000,-200.0,0.00039372,20]
[421627810,1777995044000,-3554.6459089,0.00039446,2]
[421627798,1777995044000,-151.882,0.00039309,2]
[421627840,1777995044000,-500.0,0.00039681,2]
[421627800,1777995044000,-2489.28,0.00039343,2]
[421627852,1777995044000,-151.0,0.00039693,30]
[421627873,1777995044000,-500.0,0.00039709,2]
[421627876,1777995044000,-789.51,0.00039709,2]
[421627877,1777995044000,-897.01,0.00039709,2]
[421627878,1777995044000,-897.01,0.00039709,2]
[421627880,1777995044000,-510.6,0.00039709,2]
[421627883,1777995044000,-3317.68,0.00039709,2]
[421627879,1777995044000,-897.01,0.00039709,2]
[421627882,1777995044000,-510.6,0.00039709,2]
[421627884,1777995044000,-3317.68,0.00039709,2]
[421627881,1777995044000,-510.6,0.00039709,2]
[421627886,1777995044000,-660089.357,0.0003971,30]
[421627888,1777995044000,-151.0,0.0003971,30]
[421627887,1777995044000,-151.0,0.0003971,30]
[421627890,1777995044000,-151.0,0.0003971,30]
[421627893,1777995044000,-169.33728848,0.00039764,120]
[421627895,1777995044000,-151.44,0.00039773,2]
[421627892,1777995044000,-150.0,0.0003975,120]
[421627896,1777995044000,-6541.0,0.00039791,2]
[421627889,1777995044000,-151.0,0.0003971,30]
[421627891,1777995044000,-159.0,0.0003975,120]
[421627885,1777995044000,-3317.68,0.00039709,2]
[421627894,1777995044000,-507.5548272,0.00039773,5]
[421627898,1777995044000,-242.07,0.00039795,30]
[421627897,1777995044000,-166.65,0.00039794,30]
[421627899,1777995044000,-647.40374818,0.000398,30]
[421627901,1777995044000,-169.8937814,0.00039845,2]
[421627844,1777995044000,-444.44444,0.0003969,116]
[421627871,1777995044000,-500.0,0.00039709,2]
[421627870,1777995044000,-211.21392243,0.00039709,2]
[421627900,1777995044000,-5070.0,0.000398,2]
[421627874,1777995044000,-789.51,0.00039709,2]
[421627872,1777995044000,-500.0,0.00039709,2]
[421627851,1777995044000,-151.0,0.00039693,30]
[421627843,1777995044000,-444.44445,0.0003969,116]
[421627849,1777995044000,-500.0,0.00039693,2]
[421627850,1777995044000,-151.0,0.00039693,30]
[421627846,1777995044000,-857.48,0.00039693,2]
[421627848,1777995044000,-500.0,0.00039693,2]
[421627845,1777995044000,-444.44445,0.0003969,116]
[421627847,1777995044000,-857.48,0.00039693,2]
[421627853,1777995044000,-500.0,0.00039693,2]
[421627854,1777995044000,-500.0,0.00039693,2]
[421627856,1777995044000,-167.24,0.000397,30]
[421627858,1777995044000,-1000.0,0.000397,2]
[421627842,1777995044000,-444.44444,0.0003969,116]
[421627857,1777995044000,-4913.98,0.000397,7]
[421627862,1777995044000,-921.0,0.000397,2]
[421627868,1777995044000,-563.93,0.00039709,2]
[421627867,1777995044000,-563.93,0.00039709,2]
[421627866,1777995044000,-500.0,0.00039709,2]
[421627864,1777995044000,-500.0,0.00039709,2]
[421627865,1777995044000,-500.0,0.00039709,2]
[421627869,1777995044000,-563.93,0.00039709,2]
[421627859,1777995044000,-621.28402216,0.000397,2]
[421627863,1777995044000,-2773.2,0.00039708,2]
[421627861,1777995044000,-940.0,0.000397,2]
[421627855,1777995044000,-529.11263333,0.00039698,2]
[421627860,1777995044000,-621.28402216,0.000397,2]
[421627875,1777995044000,-789.51,0.00039709,2]
[421627940,1777995045000,-500.0,0.00039999,2]
[421627938,1777995045000,-500.0,0.00039999,2]
[421627939,1777995045000,-500.0,0.00039999,2]
[421627937,1777995045000,-500.0,0.00039999,2]
[421627926,1777995045000,-2773.2,0.00039998,2]
[421627931,1777995045000,-857.48,0.00039999,2]
[421627925,1777995045000,-416.67733328,0.0003999,7]
[421627943,1777995045000,-500.0,0.00039999,2]
[421627935,1777995045000,-500.0,0.00039999,2]
[421627929,1777995045000,-857.48,0.00039999,2]
[421627932,1777995045000,-857.48,0.00039999,2]
[421627945,1777995045000,-500.0,0.00039999,2]
[421627942,1777995045000,-532.73503869,0.00039999,2]
[421627950,1777995045000,-500.0,0.00039999,2]
[421627944,1777995045000,-500.0,0.00039999,2]
[421627948,1777995045000,-500.0,0.00039999,2]